lending/lending_fUSD_20250913
["ID","MTS","AMOUNT","RATE_DAILY","PERIOD"]
[385359889,1757790804992,-459.11,0.00031232,2]
[385359890,1757790805002,-1022.06,0.00031232,2]
[385359891,1757790805010,-400.0,0.00031232,2]
[385359892,1757790805020,-516.71,0.00031232,2]
[385359893,1757790805029,-400.0,0.00031232,2]
[385359894,1757790805038,-400.0,0.00031232,2]
[385359895,1757790805047,-400.0,0.00031232,2]
[385359896,1757790805056,-1379.73,0.00031232,2]
[385359897,1757790805065,-899.94,0.00031232,2]
[385359898,1757790805074,-866.46,0.00031232,2]
[385359899,1757790805083,-400.0,0.00031232,2]
[385359900,1757790805092,-556.4,0.00031232,2]
[385359901,1757790805101,-400.0,0.00031232,2]
[385359902,1757790805109,-1195.99,0.00031232,2]
[385359903,1757790805118,-518.54,0.00031232,2]
[385359904,1757790805127,-1740.08,0.00031232,2]
[385359905,1757790805137,-1006.76,0.00031232,2]
[385359906,1757790805146,-400.0,0.00031232,2]
[385359907,1757790805155,-668.89,0.00031232,2]
[385359908,1757790805164,-529.54,0.00031232,2]
[385359909,1757790805174,-927.44,0.00031232,2]
[385359910,1757790805184,-662.77,0.00031232,2]
[385359911,1757790805193,-309.5819646,0.00031232,2]
[385359912,1757790805202,-586.65,0.00031232,2]
[385359913,1757790805212,-744.19,0.00031232,2]
[385359914,1757790805221,-899.11,0.00031232,2]
[385359915,1757790805230,-770.78,0.00031232,2]
[385359916,1757790805240,-644.35,0.00031232,2]
[385359917,1757790805249,-714.15,0.00031232,2]
[385359918,1757790805258,-453.23,0.00031232,2]
[385359919,1757790805267,-1002.56,0.00031232,2]
[385359920,1757790805276,-809.12,0.00031232,2]
[385359921,1757790805285,-400.0,0.00031232,2]
[385359922,1757790805295,-400.0,0.00031232,2]
[385359923,1757790805304,-400.0,0.00031232,2]
[385359924,1757790805314,-864.64,0.00031232,2]
[385359925,1757790805323,-400.0,0.00031232,2]
[385359926,1757790805332,-836.53,0.00031232,2]
[385359927,1757790805341,-400.0,0.00031232,2]
[385359928,1757790805351,-400.0,0.00031232,2]
[385359929,1757790805360,-400.0,0.00031232,2]
[385359930,1757790805369,-800.39,0.00031232,2]
[385359931,1757790805378,-759.84,0.00031232,2]
[385359932,1757790805387,-438.06,0.00031232,2]
[385359933,1757790805396,-1067.29,0.00031232,2]
[385359934,1757790805405,-483.11,0.00031232,2]
[385359935,1757790805413,-890.46,0.00031232,2]
[385359936,1757790805422,-621.88,0.00031232,2]
[385359937,1757790805431,-2863.78,0.00031232,2]
[385359938,1757790805440,-400.0,0.00031232,2]
[385359939,1757790805449,-1123.98,0.00031232,2]
[385359940,1757790805458,-440.32,0.00031232,2]
[385359941,1757790805467,-757.94,0.00031232,2]
[385359942,1757790805475,-400.0,0.00031232,2]
[385359943,1757790805484,-557.63,0.00031232,2]
[385359944,1757790805495,-861.65,0.00031232,2]
[385359945,1757790805505,-803.76,0.00031232,2]
[385359946,1757790805514,-835.94,0.00031232,2]
[385359947,1757790805523,-434.25,0.00031232,2]
[385359948,1757790805531,-578.44,0.00031232,2]
[385359949,1757790805540,-550.07,0.00031232,2]
[385359950,1757790805550,-800.87,0.00031232,2]
[385359951,1757790805559,-541.06,0.00031232,2]
[385359952,1757790805569,-400.0,0.00031232,2]
[385359953,1757790805579,-400.0,0.00031232,2]
[385359954,1757790805589,-652.82,0.00031232,2]
[385359955,1757790805597,-400.0,0.00031232,2]
[385359956,1757790805607,-423.72,0.00031232,2]
[385359957,1757790805616,-1300.44,0.00031232,2]
[385359958,1757790805625,-439.16,0.00031232,2]
[385359959,1757790805634,-400.0,0.00031232,2]
[385359960,1757790805643,-826.3,0.00031232,2]
[385359961,1757790805652,-787.45,0.00031232,2]
[385359962,1757790805662,-535.57,0.00031232,2]
[385359963,1757790805671,-800.47,0.00031232,2]
[385359964,1757790805679,-1253.6,0.00031232,2]
[385359965,1757790805688,-544.69,0.00031232,2]
[385359966,1757790805697,-400.0,0.00031232,2]
[385359967,1757790805705,-400.0,0.00031232,2]
[385359968,1757790805714,-944.98,0.00031232,2]
[385359969,1757790805723,-842.01,0.00031232,2]
[385359970,1757790805732,-556.97,0.00031232,2]
[385359971,1757790805741,-1082.49,0.00031232,2]
[385359972,1757790805750,-652.8,0.00031232,2]
[385359973,1757790805760,-489.49,0.00031232,2]
[385359974,1757790805769,-400.0,0.00031232,2]
[385359975,1757790805778,-400.0,0.00031232,2]
[385359976,1757790805787,-400.0,0.00031232,2]
[385359977,1757790805796,-890.6,0.00031232,2]
[385359978,1757790805805,-439.06,0.00031232,2]
[385359979,1757790805815,-589.14,0.00031232,2]
[385359980,1757790805824,-583.29,0.00031232,2]
[385359981,1757790805834,-708.58,0.00031232,2]
[385359982,1757790805843,-531.52,0.00031232,2]
[385359983,1757790805852,-400.0,0.00031232,2]
[385359984,1757790805861,-1252.15,0.00031232,2]
[385359985,1757790805872,-947.61,0.00031232,2]
[385359986,1757790805881,-1050.56,0.00031232,2]
[385359987,1757790805891,-400.0,0.00031232,2]
[385359988,1757790805900,-400.0,0.00031232,2]
[385359989,1757790805909,-872.42,0.00031232,2]
[385359990,1757790805919,-400.0,0.00031232,2]
[385359991,1757790805928,-791.71,0.00031232,2]
[385359992,1757790805937,-407.96,0.00031232,2]
[385359993,1757790805947,-400.0,0.00031232,2]
[385359994,1757790805956,-983.81,0.00031232,2]
[385359995,1757790805966,-868.8,0.00031232,2]
[385359996,1757790805975,-846.53,0.00031232,2]
[385359997,1757790805985,-2593.64,0.00031232,2]
[385359998,1757790805995,-730.89,0.00031232,2]
[385359999,1757790806004,-425.99296288,0.00031232,2]
[385360000,1757790806014,-785.21,0.00031232,2]
[385360001,1757790806023,-371.41114112,0.00031232,2]
[385360002,1757790806034,-400.0,0.00031232,2]
[385360003,1757790806043,-447.29,0.00031232,2]
[385360004,1757790806053,-964.92,0.00031232,2]
[385360005,1757790806062,-400.0,0.00031232,2]
[385360006,1757790806072,-759.47,0.00031232,2]
[385360007,1757790806081,-428.63,0.00031232,2]
[385360008,1757790806090,-400.0,0.00031232,2]
[385360009,1757790806099,-400.0,0.00031232,2]
[385360010,1757790806108,-620.45,0.00031232,2]
[385360011,1757790806117,-862.8,0.00031232,2]
[385360012,1757790806126,-537.7,0.00031232,2]
[385360013,1757790806134,-505.66,0.00031232,2]
[385360014,1757790806143,-427.09,0.00031232,2]
[385360015,1757790806152,-400.0,0.00031232,2]
[385360016,1757790806161,-400.0,0.00031232,2]
[385360017,1757790806170,-1263.32,0.00031232,2]
[385360018,1757790806179,-400.0,0.00031232,2]
[385360019,1757790806188,-400.0,0.00031232,2]
[385360020,1757790806196,-400.0,0.00031232,2]
[385360021,1757790806205,-786.15,0.00031232,2]
[385360022,1757790806214,-4665.54,0.00031232,2]
[385360023,1757790806222,-400.0,0.00031232,2]
[385360024,1757790806231,-769.42,0.00031232,2]
[385360025,1757790806240,-958.92,0.00031232,2]
[385360026,1757790806249,-400.0,0.00031232,2]
[385360027,1757790806259,-1162.64,0.00031232,2]
[385360028,1757790806268,-843.12,0.00031232,2]
[385360029,1757790806279,-830.89,0.00031232,2]
[385360030,1757790806289,-400.0,0.00031232,2]
[385360031,1757790806298,-400.0,0.00031232,2]
[385360032,1757790806308,-871.15,0.00031232,2]
[385360033,1757790806317,-484.74,0.00031232,2]
[385360034,1757790806326,-400.0,0.00031232,2]
[385360035,1757790806336,-582.6,0.00031232,2]
[385360036,1757790806347,-1106.22,0.00031232,2]
[385360037,1757790806356,-1197.3,0.00031232,2]
[385360038,1757790806367,-244.46691719,0.00031232,2]
[385360039,1757790806376,-3316.79,0.00031232,2]
[385360040,1757790806386,-400.0,0.00031232,2]
[385360041,1757790806396,-400.0,0.00031232,2]
[385360042,1757790806405,-898.38,0.00031232,2]
[385360043,1757790806415,-400.0,0.00031232,2]
[385360044,1757790806424,-1081.81,0.00031232,2]
[385360045,1757790806434,-744.46,0.00031232,2]
[385360046,1757790806445,-1406.57,0.00031232,2]
[385360047,1757790806455,-420.47,0.00031232,2]
[385360048,1757790806465,-2017.53,0.00031232,2]
[385360049,1757790806475,-1035.92,0.00031232,2]
[385360050,1757790806484,-752.16,0.00031232,2]
[385360051,1757790806496,-400.0,0.00031232,2]
[385360052,1757790806505,-843.08,0.00031232,2]
[385360053,1757790806514,-729.82,0.00031232,2]
[385360054,1757790806524,-400.0,0.00031232,2]
[385360055,1757790806533,-924.42,0.00031232,2]
[385360056,1757790806542,-1791.52,0.00031232,2]
[385360057,1757790806552,-715.39,0.00031232,2]
[385360058,1757790806561,-400.0,0.00031232,2]
[385360059,1757790806570,-905.52,0.00031232,2]
[385360060,1757790806580,-543.24,0.00031232,2]
[385360061,1757790806589,-405.71,0.00031232,2]
[385360062,1757790806599,-1125.91,0.00031232,2]
[385360063,1757790806608,-405.06,0.00031232,2]
[385360064,1757790806618,-897.14,0.00031232,2]
[385360065,1757790806627,-838.71,0.00031232,2]
[385360066,1757790806637,-778.35,0.00031232,2]
[385360067,1757790806647,-1550.32,0.00031232,2]
[385360068,1757790806657,-1097.98,0.00031232,2]
[385360069,1757790806667,-519.54,0.00031232,2]
[385360070,1757790806677,-539.29256305,0.00031232,2]
[385360071,1757790806686,-400.0,0.00031232,2]
[385360072,1757790806696,-746.12,0.00031232,2]
[385360073,1757790806705,-812.08,0.00031232,2]
[385360074,1757790806715,-1172.1,0.00031232,2]
[385360075,1757790806726,-400.0,0.00031232,2]
[385360076,1757790806736,-1004.56,0.00031232,2]
[385360077,1757790806746,-406.12,0.00031232,2]
[385360078,1757790806756,-738.83,0.00031232,2]
[385360079,1757790806765,-372.09471718,0.00031232,2]
[385360080,1757790806775,-1445.07,0.00031232,2]
[385360081,1757790806786,-400.0,0.00031232,2]
[385360082,1757790806795,-681.1,0.00031232,2]
[385360083,1757790806806,-400.0,0.00031232,2]
[385360084,1757790806816,-1822.15,0.00031232,2]
[385360085,1757790806827,-417.32,0.00031232,2]
[385360086,1757790806838,-636.43,0.00031232,2]
[385360087,1757790806848,-1015.89,0.00031232,2]
[385360088,1757790806859,-983.53,0.00031232,2]
[385360089,1757790806869,-722.69,0.00031232,2]
[385360090,1757790806880,-761.25,0.00031232,2]
[385360091,1757790806890,-670.74,0.00031232,2]
[385360092,1757790806900,-400.0,0.00031232,2]
[385360093,1757790806910,-458.09,0.00031232,2]
[385360094,1757790806919,-589.72,0.00031232,2]
[385360095,1757790806929,-411.62,0.00031232,2]
[385360096,1757790806940,-422.08,0.00031232,2]
[385360097,1757790806951,-1393.14,0.00031232,2]
[385360098,1757790806961,-400.0,0.00031232,2]
[385360099,1757790806973,-400.0,0.00031232,2]
[385360100,1757790806983,-1286.51,0.00031232,2]
[385360101,1757790806993,-400.0,0.00031232,2]
[385360102,1757790807005,-158.75204247,0.00031232,2]
[385360103,1757790807015,-1836.39,0.00031232,2]
[385360104,1757790807025,-806.89,0.00031232,2]
[385360105,1757790807036,-3209.32,0.00031232,2]
[385360106,1757790807048,-1118.88,0.00031232,2]
[385360107,1757790807058,-862.09,0.00031232,2]
[385360108,1757790807068,-2346.72,0.00031232,2]
[385360109,1757790807078,-1033.98,0.00031232,2]
[385360110,1757790807088,-400.0,0.00031232,2]
[385360111,1757790807097,-702.99,0.00031232,2]
[385360112,1757790807107,-896.46,0.00031232,2]
[385360113,1757790807116,-524.85,0.00031232,2]
[385360114,1757790807126,-1450.08,0.00031232,2]
[385360115,1757790807135,-837.65,0.00031232,2]
[385360116,1757790807145,-941.17,0.00031232,2]
[385360117,1757790807154,-872.8,0.00031232,2]
[385360118,1757790807164,-727.17,0.00031232,2]
[385360119,1757790807174,-711.83,0.00031232,2]
[385360120,1757790807182,-765.36,0.00031232,2]
[385360121,1757790807191,-778.2,0.00031232,2]
[385360122,1757790807200,-2033.09,0.00031232,2]
[385360123,1757790807210,-980.63,0.00031232,2]
[385360124,1757790807220,-677.3,0.00031232,2]
[385360125,1757790807230,-538.72,0.00031232,2]
[385360126,1757790807240,-1183.03,0.00031232,2]
[385360127,1757790807250,-722.19,0.00031232,2]
[385360128,1757790807261,-1015.48,0.00031232,2]
[385360129,1757790807270,-965.24,0.00031232,2]
[385360130,1757790807279,-599.03,0.00031232,2]
[385360131,1757790807288,-653.28,0.00031232,2]
[385360132,1757790807299,-974.74,0.00031232,2]
[385360133,1757790807308,-532.11,0.00031232,2]
[385360134,1757790807318,-775.6,0.00031232,2]
[385360135,1757790807328,-400.0,0.00031232,2]
[385360136,1757790807339,-198.72998742,0.00031232,2]
[385360137,1757790807349,-1047.99,0.00031232,2]
[385360138,1757790807359,-867.54,0.00031232,2]
[385360139,1757790807370,-741.23,0.00031232,2]
[385360140,1757790807380,-603.59,0.00031232,2]
[385360141,1757790807390,-2266.8,0.00031232,2]
[385360142,1757790807399,-835.84,0.00031232,2]
[385360143,1757790807410,-1243.58,0.00031232,2]
[385360144,1757790807419,-526.24,0.00031232,2]
[385360145,1757790807429,-605.54,0.00031232,2]
[385360146,1757790807439,-502.15,0.00031232,2]
[385360147,1757790807449,-495.47,0.00031232,2]
[385360148,1757790807460,-462.88,0.00031232,2]
[385360149,1757790807471,-2089.21,0.00031232,2]
[385360150,1757790807481,-1484.39,0.00031232,2]
[385360151,1757790807492,-858.84,0.00031232,2]
[385360152,1757790807507,-708.83,0.00031232,2]
[385360153,1757790807519,-1139.82,0.00031232,2]
[385360154,1757790807531,-676.37,0.00031232,2]
[385360155,1757790807543,-920.38,0.00031232,2]
[385360156,1757790807553,-785.36,0.00031232,2]
[385360157,1757790807563,-400.0,0.00031232,2]
[385360158,1757790807574,-1042.18,0.00031232,2]
[385360159,1757790807586,-714.23,0.00031232,2]
[385360160,1757790807596,-894.39,0.00031232,2]
[385360161,1757790807605,-647.42,0.00031232,2]
[385360162,1757790807615,-857.85,0.00031232,2]
[385360163,1757790807624,-513.3,0.00031232,2]
[385360164,1757790807634,-924.41,0.00031232,2]
[385360165,1757790807643,-2338.03,0.00031232,2]
[385360166,1757790807654,-1469.88,0.00031232,2]
[385360167,1757790807664,-841.74,0.00031232,2]
[385360168,1757790807674,-722.3,0.00031232,2]
[385360169,1757790807683,-415.27,0.00031232,2]
[385360170,1757790807693,-814.0,0.00031232,2]
[385360171,1757790807703,-767.19,0.00031232,2]
[385360172,1757790807713,-1229.51,0.00031232,2]
[385360173,1757790807724,-844.21,0.00031232,2]
[385360174,1757790807734,-1485.88,0.00031232,2]
[385360175,1757790807745,-449.16,0.00031232,2]
[385360176,1757790807755,-2265.68,0.00031232,2]
[385360177,1757790807765,-865.66,0.00031232,2]
[385360178,1757790807776,-863.57,0.00031232,2]
[385360179,1757790807786,-572.0,0.00031232,2]
[385360180,1757790807796,-2112.49,0.00031232,2]
[385360181,1757790807807,-1107.28,0.00031232,2]
[385360182,1757790807817,-510.21,0.00031232,2]
[385360183,1757790807827,-400.0,0.00031232,2]
[385360184,1757790807836,-1170.47,0.00031232,2]
[385360185,1757790807847,-841.3,0.00031232,2]
[385360186,1757790807857,-856.96,0.00031232,2]
[385360187,1757790807868,-1028.51,0.00031232,2]
[385360188,1757790807878,-906.61,0.00031232,2]
[385360189,1757790807888,-1458.58,0.00031232,2]
[385360190,1757790807897,-1006.96,0.00031232,2]
[385360191,1757790807907,-701.85,0.00031232,2]
[385360192,1757790807916,-4256.1,0.00031232,2]
[385360193,1757790807926,-728.15,0.00031232,2]
[385360194,1757790807935,-400.0,0.00031232,2]
[385360195,1757790807945,-925.96,0.00031232,2]
[385360196,1757790807955,-400.0,0.00031232,2]
[385360197,1757790807964,-445.69,0.00031232,2]
[385360198,1757790807974,-1198.57,0.00031232,2]
[385360199,1757790807984,-2857.69,0.00031232,2]
[385360200,1757790807994,-1974.67,0.00031232,2]
[385360201,1757790808003,-847.13,0.00031232,2]
[385360202,1757790808013,-2990.98,0.00031232,2]
[385360203,1757790808023,-400.0,0.00031232,2]
[385360204,1757790808034,-834.58,0.00031232,2]
[385360205,1757790808044,-2302.98,0.00031232,2]
[385360206,1757790808054,-2111.33,0.00031232,2]
[385360207,1757790808064,-1747.56,0.00031232,2]
[385360208,1757790808074,-466.82,0.00031232,2]
[385360209,1757790808084,-400.0,0.00031232,2]
[385360210,1757790808094,-2233.25,0.00031232,2]
[385360211,1757790808105,-400.0,0.00031232,2]
[385360212,1757790808115,-1255.2,0.00031232,2]
[385360213,1757790808125,-1963.87,0.00031232,2]
[385360214,1757790808135,-694.91,0.00031232,2]
[385360215,1757790808145,-400.0,0.00031232,2]
[385360216,1757790808155,-400.0,0.00031232,2]
[385360217,1757790808165,-1143.85,0.00031232,2]
[385360218,1757790808175,-807.66,0.00031232,2]
[385360219,1757790808185,-400.0,0.00031232,2]
[385360220,1757790808194,-927.88,0.00031232,2]
[385360221,1757790808203,-2263.39,0.00031232,2]
[385360222,1757790808213,-952.59,0.00031232,2]
[385360223,1757790808223,-931.48,0.00031232,2]
[385360224,1757790808233,-400.0,0.00031232,2]
[385360225,1757790808243,-669.04,0.00031232,2]
[385360226,1757790808253,-1333.33,0.00031232,2]
[385360227,1757790808263,-944.31,0.00031232,2]
[385360228,1757790808272,-711.99,0.00031232,2]
[385360229,1757790808283,-1798.63,0.00031232,2]
[385360230,1757790808293,-1030.24,0.00031232,2]
[385360231,1757790808302,-568.52,0.00031232,2]
[385360232,1757790808312,-977.53,0.00031232,2]
[385360233,1757790808323,-1079.08,0.00031232,2]
[385360234,1757790808333,-400.0,0.00031232,2]
[385360235,1757790808343,-923.82,0.00031232,2]
[385360236,1757790808354,-1374.51,0.00031232,2]
[385360237,1757790808365,-539.76,0.00031232,2]
[385360238,1757790808375,-400.0,0.00031232,2]
[385360239,1757790808384,-532.15,0.00031232,2]
[385360240,1757790808394,-1021.66,0.00031232,2]
[385360241,1757790808404,-707.41,0.00031232,2]
[385360242,1757790808414,-796.82,0.00031232,2]
[385360243,1757790808423,-786.29,0.00031232,2]
[385360244,1757790808433,-1683.27,0.00031232,2]
[385360245,1757790808443,-923.85,0.00031232,2]
[385360246,1757790808452,-585.84,0.00031232,2]
[385360247,1757790808462,-1254.84,0.00031232,2]
[385360248,1757790808472,-1026.54,0.00031232,2]
[385360249,1757790808482,-400.0,0.00031232,2]
[385360250,1757790808494,-492.79,0.00031232,2]
[385360251,1757790808506,-2328.06,0.00031232,2]
[385360252,1757790808516,-1854.12,0.00031232,2]
[385360253,1757790808525,-3059.22,0.00031232,2]
[385360254,1757790808535,-1159.49,0.00031232,2]
[385360255,1757790808545,-1000.0,0.00031232,2]
[385360256,1757790808555,-618.58,0.00031232,2]
[385360257,1757790808565,-1262.94,0.00031232,2]
[385360258,1757790808575,-400.0,0.00031232,2]
[385360259,1757790808585,-400.0,0.00031232,2]
[385360260,1757790808596,-666.27,0.00031232,2]
[385360261,1757790808606,-2778.98,0.00031232,2]
[385360262,1757790808616,-1602.35,0.00031232,2]
[385360263,1757790808626,-400.0,0.00031232,2]
[385360264,1757790808635,-438.09,0.00031232,2]
[385360265,1757790808645,-344.99,0.00031232,2]
[385360266,1757790808654,-523.76,0.00031232,2]
[385360267,1757790808664,-734.11,0.00031232,2]
[385360268,1757790808673,-634.16,0.00031232,2]
[385360269,1757790808683,-887.05,0.00031232,2]
[385360270,1757790808692,-942.86,0.00031232,2]
[385360271,1757790808701,-1697.7,0.00031232,2]
[385360272,1757790808711,-400.0,0.00031232,2]
[385360273,1757790808721,-1448.36,0.00031232,2]
[385360274,1757790808730,-1288.99,0.00031232,2]
[385360275,1757790808740,-2431.97,0.00031232,2]
[385360276,1757790808750,-488.5,0.00031232,2]
[385360277,1757790808760,-655.13,0.00031232,2]
[385360278,1757790808770,-693.6,0.00031232,2]
[385360279,1757790808779,-985.78,0.00031232,2]
[385360280,1757790808790,-914.74,0.00031232,2]
[385360281,1757790808800,-1199.53,0.00031232,2]
[385360282,1757790808810,-400.0,0.00031232,2]
[385360283,1757790808820,-3119.56,0.00031232,2]
[385360284,1757790808830,-492.5,0.00031232,2]
[385360285,1757790808840,-400.0,0.00031232,2]
[385360286,1757790808850,-683.66,0.00031232,2]
[385360287,1757790808860,-869.51,0.00031232,2]
[385360288,1757790808871,-1155.29,0.00031232,2]
[385360289,1757790808880,-1010.79,0.00031232,2]
[385360290,1757790808890,-655.9,0.00031232,2]
[385360291,1757790808900,-450.64,0.00031232,2]
[385360292,1757790808910,-1130.65,0.00031232,2]
[385360293,1757790808920,-1727.97,0.00031232,2]
[385360294,1757790808930,-971.87,0.00031232,2]
[385360295,1757790808940,-1049.74,0.00031232,2]
[385360296,1757790808949,-536.28,0.00031232,2]
[385360297,1757790808959,-920.05,0.00031232,2]
[385360298,1757790808971,-807.81,0.00031232,2]
[385360299,1757790808981,-1540.01,0.00031232,2]
[385360300,1757790808990,-400.0,0.00031232,2]
[385360301,1757790809000,-767.61,0.00031232,2]
[385360302,1757790809018,-843.61,0.00031232,2]
[385360303,1757790809028,-798.34,0.00031232,2]
[385360304,1757790809038,-1507.18,0.00031232,2]
[385360305,1757790809048,-721.19,0.00031232,2]
[385360306,1757790809057,-1074.98,0.00031232,2]
[385360307,1757790809067,-1380.97,0.00031232,2]
[385360308,1757790809077,-736.94,0.00031232,2]
[385360309,1757790809087,-8779.55,0.00031232,2]
[385360310,1757790809097,-400.0,0.00031232,2]
[385360311,1757790809107,-214.99944545,0.00031232,2]
[385360312,1757790809117,-1003.9,0.00031232,2]
[385360313,1757790809127,-594.63,0.00031232,2]
[385360314,1757790809136,-506.79,0.00031232,2]
[385360315,1757790809146,-729.26,0.00031232,2]
[385360316,1757790809155,-649.71,0.00031232,2]
[385360317,1757790809165,-813.26,0.00031232,2]
[385360318,1757790809175,-666.01,0.00031232,2]
[385360319,1757790809185,-752.66,0.00031232,2]
[385360320,1757790809195,-2622.41,0.00031232,2]
[385360321,1757790809204,-851.12,0.00031232,2]
[385360322,1757790809214,-1034.54,0.00031232,2]
[385360323,1757790809224,-745.71,0.00031232,2]
[385360324,1757790809234,-1500.0,0.00031233,5]
[385360325,1757790809243,-874.99,0.000313,7]
[385360326,1757790809253,-210.0,0.0003132,30]
[385360327,1757790809263,-3206.705462,0.00031321,2]
[385360328,1757790809273,-2492.142925,0.00031321,2]
[385360329,1757790809284,-3896.254989,0.00031321,2]
[385360330,1757790809294,-500.0,0.00031335,2]
[385360331,1757790809304,-150.866427,0.0003136,4]
[385360332,1757790809314,-3206.705462,0.0003136,4]
[385360333,1757790809323,-2492.142925,0.0003136,4]
[385360334,1757790809333,-3896.254989,0.0003136,4]
[385360335,1757790809343,-232.41,0.00031369,120]
[385360336,1757790809354,-3206.705462,0.00031428,2]
[385360337,1757790809364,-150.866427,0.00031428,2]
[385360338,1757790809374,-2492.142925,0.00031428,2]
[385360339,1757790809384,-3896.254989,0.00031428,2]
[385360340,1757790809394,-3206.705462,0.00031498,3]
[385360341,1757790809403,-150.866427,0.00031498,3]
[385360342,1757790809415,-2492.142925,0.00031498,3]
[385360343,1757790809424,-3896.254989,0.00031498,3]
[385360344,1757790809435,-3206.705462,0.000315,15]
[385360345,1757790809445,-2492.142925,0.000315,15]
[385360346,1757790809455,-3896.254989,0.000315,15]
[385360347,1757790809466,-403.48,0.00031506,2]
[385360348,1757790809477,-400.0,0.00031506,2]
[385360349,1757790809487,-400.0,0.00031506,2]
[385360350,1757790809790,-699.06,0.00031506,2]
[385360351,1757790809800,-888.74,0.00031506,2]
[385360352,1757790809810,-1067.33,0.00031506,2]
[385360353,1757790809820,-494.9,0.00031506,2]
[385360354,1757790809836,-400.0,0.00031506,2]
[385360355,1757790809845,-1011.1,0.00031506,2]
[385360356,1757790809855,-411.04,0.00031506,2]
[385360357,1757790809864,-400.0,0.00031506,2]
[385360358,1757790809874,-436.55,0.00031506,2]
[385360359,1757790809884,-415.46,0.00031506,2]
[385360360,1757790809894,-1222.47,0.00031506,2]
[385360361,1757790809903,-622.37,0.00031506,2]
[385360362,1757790809913,-751.49,0.00031506,2]
[385360363,1757790809923,-512.06,0.00031506,2]
[385360364,1757790809932,-400.0,0.00031506,2]
[385360365,1757790809941,-516.89,0.00031506,2]
[385360366,1757790809951,-572.28,0.00031506,2]
[385360367,1757790809960,-400.0,0.00031506,2]
[385360368,1757790809970,-400.0,0.00031506,2]
[385360369,1757790809980,-400.0,0.00031506,2]
[385360370,1757790809990,-405.34,0.00031506,2]
[385360371,1757790810000,-892.3,0.00031506,2]
[385360372,1757790810010,-400.0,0.00031506,2]
[385360373,1757790810019,-2090.35,0.00031506,2]
[385360374,1757790810029,-445.77,0.00031506,2]
[385360375,1757790810040,-849.51,0.00031506,2]
[385360376,1757790810050,-764.33,0.00031506,2]
[385360377,1757790810059,-812.38,0.00031506,2]
[385360378,1757790810069,-579.38,0.00031506,2]
[385360379,1757790810078,-400.0,0.00031506,2]
[385360380,1757790810087,-400.0,0.00031506,2]
[385360381,1757790810097,-400.0,0.00031506,2]
[385360382,1757790810106,-1141.14,0.00031506,2]
[385360383,1757790810115,-650.0,0.00031506,120]
[385360384,1757790810124,-593.32,0.00031506,2]
[385360385,1757790810133,-400.0,0.00031506,2]
[385360386,1757790810142,-762.02,0.00031506,2]
[385360387,1757790810152,-400.0,0.00031506,2]
[385360388,1757790810161,-633.2,0.00031506,2]